[Event "Late-Titled-Tuesday-Blitz-March-19-2024"]
[Site "Chess.com"]
[Date "2024.03.19"]
[Round "11"]
[White "AntonovaNadezhda"]
[Black "rikchessmx"]
[Result "1-0"]
[WhiteElo "2221"]
[BlackElo "2268"]
[TimeControl "180+1"]
[EndTime "16:01:43 PDT"]
[Termination "AntonovaNadezhda won on time"]

1. Nf3 {[%clk 0:02:59.8]} 1... Nf6 {[%clk 0:02:59.5]} 2. b3 {[%clk 0:02:59.8]}
2... d5 {[%clk 0:02:59]} 3. Bb2 {[%clk 0:03:00.3]} 3... c6 {[%clk 0:02:58.8]} 4.
g3 {[%clk 0:03:00.2]} 4... Nbd7 {[%clk 0:02:59.1]} 5. Bg2 {[%clk 0:03:00.8]}
5... e6 {[%clk 0:02:52.1]} 6. O-O {[%clk 0:03:00.8]} 6... Bc5 {[%clk 0:02:51.2]}
7. d4 {[%clk 0:03:00.5]} 7... Bd6 {[%clk 0:02:50.7]} 8. c4 {[%clk 0:03:01]} 8...
O-O {[%clk 0:02:49.8]} 9. Nc3 {[%clk 0:03:01.5]} 9... Bb4 {[%clk 0:02:48.4]} 10.
a3 {[%clk 0:03:00.3]} 10... Bxc3 {[%clk 0:02:48.5]} 11. Bxc3 {[%clk 0:03:01.2]}
11... Re8 {[%clk 0:02:48.5]} 12. Re1 {[%clk 0:02:58.7]} 12... Ne4 {[%clk
0:02:47.1]} 13. Bb2 {[%clk 0:02:58.9]} 13... f5 {[%clk 0:02:46.9]} 14. e3 {[%clk
0:02:59.1]} 14... b6 {[%clk 0:02:43.7]} 15. Rc1 {[%clk 0:02:58]} 15... Ba6
{[%clk 0:02:42]} 16. Nd2 {[%clk 0:02:57.4]} 16... Ndf6 {[%clk 0:02:40.4]} 17. f3
{[%clk 0:02:50.3]} 17... Ng5 {[%clk 0:02:31.8]} 18. b4 {[%clk 0:02:39.3]} 1-0

[Event "Late-Titled-Tuesday-Blitz-March-19-2024"]
[Site "Chess.com"]
[Date "2024.03.19"]
[Round "11"]
[White "Zampronha1971"]
[Black "Evgeny81"]
[Result "0-1"]
[WhiteElo "2355"]
[BlackElo "2755"]
[TimeControl "180+1"]
[EndTime "16:01:45 PDT"]
[Termination "Evgeny81 won by resignation"]

1. e4 {[%clk 0:03:00.9]} 1... e6 {[%clk 0:02:57.3]} 2. d4 {[%clk 0:03:00.3]}
2... d5 {[%clk 0:02:55.6]} 3. Nc3 {[%clk 0:03:00.9]} 3... Nd7 {[%clk 0:02:54]}
4. Nf3 {[%clk 0:02:59.8]} 4... Nb6 {[%clk 0:02:52.3]} 5. a4 {[%clk 0:02:56.7]}
5... a5 {[%clk 0:02:51.9]} 6. Bd3 {[%clk 0:02:47.9]} 6... Bb4 {[%clk 0:02:51.8]}
7. O-O {[%clk 0:02:46.5]} 7... Nf6 {[%clk 0:02:51.1]} 8. e5 {[%clk 0:02:45.1]}
8... Nfd7 {[%clk 0:02:51.3]} 9. Ne2 {[%clk 0:02:41.4]} 9... Be7 {[%clk
0:02:49.8]} 10. c3 {[%clk 0:02:39.9]} 10... c5 {[%clk 0:02:49.4]} 11. Be3 {[%clk
0:02:38.7]} 11... cxd4 {[%clk 0:02:47]} 12. Nexd4 {[%clk 0:02:32.2]} 12... Nc5
{[%clk 0:02:45.9]} 13. Nb5 {[%clk 0:02:22.2]} 13... Nxd3 {[%clk 0:02:41.2]} 14.
Qxd3 {[%clk 0:02:22.3]} 14... Nc4 {[%clk 0:02:41.8]} 15. Bc1 {[%clk 0:02:07.8]}
15... Bd7 {[%clk 0:02:39.7]} 16. b3 {[%clk 0:02:07.9]} 16... Nb6 {[%clk
0:02:37.6]} 17. Ba3 {[%clk 0:02:06.4]} 17... O-O {[%clk 0:02:37.6]} 18. Bxe7
{[%clk 0:02:05.5]} 18... Qxe7 {[%clk 0:02:38.5]} 19. Qd4 {[%clk 0:02:03]} 19...
Bxb5 {[%clk 0:02:34.9]} 20. axb5 {[%clk 0:02:00.8]} 20... Qc7 {[%clk 0:02:35.1]}
21. Rfe1 {[%clk 0:01:48.1]} 21... Rfc8 {[%clk 0:02:34]} 22. Rac1 {[%clk
0:01:48.4]} 22... a4 {[%clk 0:02:31.1]} 23. bxa4 {[%clk 0:01:46.1]} 23... Rxa4
{[%clk 0:02:30.7]} 24. Qd3 {[%clk 0:01:46.6]} 24... h6 {[%clk 0:02:29.9]} 25.
Nd4 {[%clk 0:01:40.9]} 25... Rc4 {[%clk 0:02:24.1]} 26. Re3 {[%clk 0:01:38.1]}
26... Na4 {[%clk 0:02:24]} 27. Ne2 {[%clk 0:01:31.5]} 27... Nc5 {[%clk 0:02:21]}
28. Qb1 {[%clk 0:01:29.1]} 28... Ne4 {[%clk 0:02:17.8]} 29. Qb3 {[%clk
0:01:15.9]} 29... Qxe5 {[%clk 0:02:14.2]} 30. f3 {[%clk 0:01:14.5]} 30... Qg5
{[%clk 0:02:14.4]} 31. f4 {[%clk 0:01:10.4]} 31... Qe7 {[%clk 0:02:11.4]} 32.
Ng3 {[%clk 0:01:10.5]} 32... Qc5 {[%clk 0:02:10.8]} 0-1

[Event "Late-Titled-Tuesday-Blitz-March-19-2024"]
[Site "Chess.com"]
[Date "2024.03.19"]
[Round "11"]
[White "VD_coach"]
[Black "ArchibaldCerveza29"]
[Result "1-0"]
[WhiteElo "2515"]
[BlackElo "2362"]
[TimeControl "180+1"]
[EndTime "16:01:47 PDT"]
[Termination "VD_coach won by resignation"]

1. Nf3 {[%clk 0:03:00.9]} 1... Nf6 {[%clk 0:02:59.4]} 2. d4 {[%clk 0:03:01.3]}
2... g6 {[%clk 0:02:59.5]} 3. c4 {[%clk 0:03:02]} 3... Bg7 {[%clk 0:02:57.7]} 4.
g3 {[%clk 0:03:02.1]} 4... O-O {[%clk 0:02:51.5]} 5. Bg2 {[%clk 0:03:02.3]} 5...
d6 {[%clk 0:02:52]} 6. O-O {[%clk 0:03:02.1]} 6... c5 {[%clk 0:02:49.8]} 7. dxc5
{[%clk 0:03:00.7]} 7... dxc5 {[%clk 0:02:48.4]} 8. Nc3 {[%clk 0:03:01.6]} 8...
Nc6 {[%clk 0:02:38.1]} 9. Be3 {[%clk 0:02:44.6]} 9... Be6 {[%clk 0:02:33.8]} 10.
Qa4 {[%clk 0:02:40.8]} 10... Nd4 {[%clk 0:02:24.8]} 11. Rad1 {[%clk 0:02:33]}
11... Bd7 {[%clk 0:02:21.9]} 12. Qa3 {[%clk 0:02:23.9]} 12... Nc2 {[%clk
0:02:20]} 13. Qb3 {[%clk 0:02:23.7]} 13... Nxe3 {[%clk 0:02:11.6]} 14. fxe3
{[%clk 0:02:24.6]} 14... Qc7 {[%clk 0:02:11.2]} 15. Nb5 {[%clk 0:02:13]} 15...
Bxb5 {[%clk 0:02:10]} 16. cxb5 {[%clk 0:02:12.6]} 16... Rad8 {[%clk 0:02:04.5]}
17. Rxd8 {[%clk 0:02:11.4]} 17... Rxd8 {[%clk 0:02:03.3]} 18. Rd1 {[%clk
0:02:12.3]} 18... Ng4 {[%clk 0:01:57.8]} 19. Rxd8+ {[%clk 0:02:10]} 19... Qxd8
{[%clk 0:01:58.7]} 20. Ng5 {[%clk 0:02:09.6]} 20... Qe8 {[%clk 0:01:39.5]} 21.
Nxf7 {[%clk 0:02:05.8]} 21... e6 {[%clk 0:01:12.1]} 22. Ng5 {[%clk 0:01:57.4]}
22... Nxe3 {[%clk 0:01:11.4]} 23. Nxe6 {[%clk 0:01:44.4]} 23... c4 {[%clk
0:01:10.7]} 24. Qxe3 {[%clk 0:01:43.5]} 24... Bd4 {[%clk 0:01:08.3]} 25. Qxd4
{[%clk 0:01:42.2]} 25... Qxe6 {[%clk 0:01:08.1]} 26. Bd5 {[%clk 0:01:42.1]} 1-0

[Event "Late-Titled-Tuesday-Blitz-March-19-2024"]
[Site "Chess.com"]
[Date "2024.03.19"]
[Round "11"]
[White "Oleksandr_Bortnyk"]
[Black "platy3"]
[Result "1-0"]
[WhiteElo "3095"]
[BlackElo "2974"]
[TimeControl "180+1"]
[EndTime "16:01:55 PDT"]
[Termination "Oleksandr_Bortnyk won by resignation"]

1. e4 {[%clk 0:03:00.9]} 1... c5 {[%clk 0:02:59.4]} 2. c3 {[%clk 0:02:57.3]}
2... d5 {[%clk 0:02:59.4]} 3. exd5 {[%clk 0:02:58.2]} 3... Qxd5 {[%clk
0:02:59.6]} 4. d4 {[%clk 0:02:58.5]} 4... Nf6 {[%clk 0:03:00.2]} 5. Be3 {[%clk
0:02:58.8]} 5... Nc6 {[%clk 0:02:58]} 6. Nf3 {[%clk 0:02:58.3]} 6... cxd4 {[%clk
0:02:44.1]} 7. cxd4 {[%clk 0:02:59.2]} 7... e6 {[%clk 0:02:42.7]} 8. Nc3 {[%clk
0:03:00.1]} 8... Qd6 {[%clk 0:02:42.7]} 9. a3 {[%clk 0:02:55.1]} 9... Be7 {[%clk
0:02:42.4]} 10. Bd3 {[%clk 0:02:52.7]} 10... O-O {[%clk 0:02:41.8]} 11. O-O
{[%clk 0:02:53.4]} 11... b6 {[%clk 0:02:39.7]} 12. Qe2 {[%clk 0:02:53.1]} 12...
Bb7 {[%clk 0:02:39]} 13. Rad1 {[%clk 0:02:53.8]} 13... Rfd8 {[%clk 0:02:29.6]}
14. Bb1 {[%clk 0:02:54]} 14... Rac8 {[%clk 0:02:27.6]} 15. Rfe1 {[%clk
0:02:54.3]} 15... Qb8 {[%clk 0:02:11]} 16. Bg5 {[%clk 0:02:47.6]} 16... h6
{[%clk 0:02:07]} 17. Bh4 {[%clk 0:02:42.1]} 17... Nh5 {[%clk 0:02:00.7]} 18. d5
{[%clk 0:02:02.3]} 18... Nf4 {[%clk 0:01:22.9]} 19. Qc2 {[%clk 0:02:00.8]} 19...
Bxh4 {[%clk 0:01:02.9]} 20. Qh7+ {[%clk 0:02:00]} 20... Kf8 {[%clk 0:01:03]} 21.
dxc6 {[%clk 0:02:00.2]} 21... Bxc6 {[%clk 0:00:47.3]} 22. Nxh4 {[%clk
0:01:52.6]} 1-0

[Event "Late-Titled-Tuesday-Blitz-March-19-2024"]
[Site "Chess.com"]
[Date "2024.03.19"]
[Round "11"]
[White "AndresDelgado77"]
[Black "expii"]
[Result "1-0"]
[WhiteElo "2334"]
[BlackElo "2192"]
[TimeControl "180+1"]
[EndTime "16:02:04 PDT"]
[Termination "AndresDelgado77 won by resignation"]

1. e4 {[%clk 0:03:00]} 1... c5 {[%clk 0:02:59.7]} 2. Nf3 {[%clk 0:02:57.2]} 2...
d6 {[%clk 0:02:57.9]} 3. d4 {[%clk 0:02:56.4]} 3... cxd4 {[%clk 0:02:58.8]} 4.
Qxd4 {[%clk 0:02:56.8]} 4... Nf6 {[%clk 0:02:55.3]} 5. e5 {[%clk 0:02:55.6]}
5... Nc6 {[%clk 0:02:53.2]} 6. Bb5 {[%clk 0:02:55.6]} 6... dxe5 {[%clk
0:02:23.9]} 7. Qxd8+ {[%clk 0:02:51.2]} 7... Kxd8 {[%clk 0:02:16.1]} 8. Bxc6
{[%clk 0:02:51.3]} 8... bxc6 {[%clk 0:02:12]} 9. Nxe5 {[%clk 0:02:51.5]} 9...
Ke8 {[%clk 0:02:07.5]} 10. O-O {[%clk 0:02:41.7]} 10... Bb7 {[%clk 0:02:05.8]}
11. Be3 {[%clk 0:02:36.4]} 11... e6 {[%clk 0:02:05.1]} 12. Nd2 {[%clk
0:02:23.1]} 12... Bd6 {[%clk 0:02:04]} 13. Nec4 {[%clk 0:02:22.5]} 13... Bc7
{[%clk 0:02:00.6]} 14. Bc5 {[%clk 0:02:18.4]} 14... Ba6 {[%clk 0:01:52.4]} 15.
Rfd1 {[%clk 0:02:13.4]} 15... Nd5 {[%clk 0:01:45]} 16. Nd6+ {[%clk 0:02:05.9]}
16... Bxd6 {[%clk 0:01:39.4]} 17. Bxd6 {[%clk 0:02:05.5]} 17... Rd8 {[%clk
0:01:33.4]} 18. Ba3 {[%clk 0:01:59.5]} 18... Nb6 {[%clk 0:01:20.8]} 19. b3
{[%clk 0:01:54.1]} 19... Nd5 {[%clk 0:01:16.5]} 20. Ne4 {[%clk 0:01:49.4]} 20...
f6 {[%clk 0:01:08.1]} 21. Nd6+ {[%clk 0:01:45]} 21... Rxd6 {[%clk 0:01:03.3]}
22. Bxd6 {[%clk 0:01:44]} 22... Kd7 {[%clk 0:00:49.9]} 23. Bc5 {[%clk
0:01:43.2]} 23... e5 {[%clk 0:00:50.7]} 24. c4 {[%clk 0:01:42]} 1-0

[Event "Late-Titled-Tuesday-Blitz-March-19-2024"]
[Site "Chess.com"]
[Date "2024.03.19"]
[Round "11"]
[White "jcmesafischer"]
[Black "newauto"]
[Result "1-0"]
[WhiteElo "2362"]
[BlackElo "2164"]
[TimeControl "180+1"]
[EndTime "16:02:21 PDT"]
[Termination "jcmesafischer won by resignation"]

1. e4 {[%clk 0:03:00.9]} 1... c6 {[%clk 0:03:00.9]} 2. Nf3 {[%clk 0:02:56.3]}
2... d5 {[%clk 0:03:01.8]} 3. Nc3 {[%clk 0:02:55.5]} 3... Bg4 {[%clk 0:03:02.2]}
4. h3 {[%clk 0:02:55.4]} 4... Bxf3 {[%clk 0:03:02.8]} 5. Qxf3 {[%clk 0:02:56.1]}
5... e6 {[%clk 0:03:03.3]} 6. d3 {[%clk 0:02:55.5]} 6... Nd7 {[%clk 0:03:01.8]}
7. g3 {[%clk 0:02:53.9]} 7... Ngf6 {[%clk 0:03:02]} 8. Bg2 {[%clk 0:02:53]} 8...
Bb4 {[%clk 0:02:59.6]} 9. O-O {[%clk 0:02:52.4]} 9... O-O {[%clk 0:02:59]} 10.
a3 {[%clk 0:02:51.4]} 10... Bxc3 {[%clk 0:02:58.8]} 11. bxc3 {[%clk 0:02:51.2]}
11... dxe4 {[%clk 0:02:59.7]} 12. dxe4 {[%clk 0:02:51.7]} 12... e5 {[%clk
0:02:58.9]} 13. h4 {[%clk 0:02:49.9]} 13... h6 {[%clk 0:02:58.8]} 14. a4 {[%clk
0:02:48]} 14... Qa5 {[%clk 0:02:54.8]} 15. Ba3 {[%clk 0:02:45.9]} 15... Rfe8
{[%clk 0:02:53.5]} 16. Bb4 {[%clk 0:02:43.9]} 16... Qc7 {[%clk 0:02:49.8]} 17.
a5 {[%clk 0:02:44.5]} 17... b6 {[%clk 0:02:48]} 18. Ba3 {[%clk 0:02:45.2]} 18...
bxa5 {[%clk 0:02:44.1]} 19. Rfd1 {[%clk 0:02:45.4]} 19... Nb6 {[%clk 0:02:42.4]}
20. Bd6 {[%clk 0:02:38.8]} 20... Qb7 {[%clk 0:02:40.3]} 21. Rab1 {[%clk
0:02:16.3]} 21... Rad8 {[%clk 0:02:30.3]} 22. c4 {[%clk 0:02:16.3]} 22... Qa6
{[%clk 0:02:25]} 23. c5 {[%clk 0:02:14.9]} 23... Nc4 {[%clk 0:02:24.7]} 24. Bf1
{[%clk 0:02:15.4]} 24... a4 {[%clk 0:01:36.1]} 25. Qe2 {[%clk 0:02:12.9]} 25...
a3 {[%clk 0:01:31.5]} 26. Qxc4 {[%clk 0:02:12.4]} 26... Qc8 {[%clk 0:01:25.3]}
27. f3 {[%clk 0:02:05.5]} 27... Nh5 {[%clk 0:01:18]} 28. Kh2 {[%clk 0:02:04.2]}
28... g5 {[%clk 0:01:06.5]} 29. Bh3 {[%clk 0:02:03.4]} 29... Qa8 {[%clk
0:01:02.7]} 30. hxg5 {[%clk 0:01:59.3]} 30... hxg5 {[%clk 0:01:02.1]} 31. Bf5
{[%clk 0:01:59.6]} 31... Kg7 {[%clk 0:00:58.2]} 32. Kg2 {[%clk 0:01:58.9]} 32...
f6 {[%clk 0:00:54.1]} 33. Rh1 {[%clk 0:01:52.4]} 33... Rh8 {[%clk 0:00:54.2]}
34. Bg4 {[%clk 0:01:52.6]} 34... Kg6 {[%clk 0:00:47.4]} 35. Bxh5+ {[%clk
0:01:52.9]} 35... Rxh5 {[%clk 0:00:47.2]} 36. Rxh5 {[%clk 0:01:53.8]} 36... Kxh5
{[%clk 0:00:47.6]} 37. Qf7+ {[%clk 0:01:54.2]} 1-0

[Event "Late-Titled-Tuesday-Blitz-March-19-2024"]
[Site "Chess.com"]
[Date "2024.03.19"]
[Round "11"]
[White "ChempionBg"]
[Black "bazar-wokzal"]
[Result "0-1"]
[WhiteElo "2361"]
[BlackElo "2559"]
[TimeControl "180+1"]
[EndTime "16:02:40 PDT"]
[Termination "bazar-wokzal won by resignation"]

1. d4 {[%clk 0:02:56.6]} 1... Nf6 {[%clk 0:02:59.7]} 2. c4 {[%clk 0:02:46.2]}
2... Nc6 {[%clk 0:02:59.6]} 3. d5 {[%clk 0:02:45.1]} 3... Ne5 {[%clk 0:02:59.8]}
4. e3 {[%clk 0:02:44.1]} 4... e6 {[%clk 0:02:59.8]} 5. f4 {[%clk 0:02:38.4]}
5... Ng6 {[%clk 0:02:58.1]} 6. Nf3 {[%clk 0:02:37]} 6... Bc5 {[%clk 0:02:57.7]}
7. Bd3 {[%clk 0:02:32.3]} 7... O-O {[%clk 0:02:56.8]} 8. a3 {[%clk 0:02:25.3]}
8... exd5 {[%clk 0:02:55.6]} 9. cxd5 {[%clk 0:02:24.9]} 9... Re8 {[%clk
0:02:55.3]} 10. O-O {[%clk 0:02:04.1]} 10... Nxf4 {[%clk 0:02:54.1]} 11. Kh1
{[%clk 0:02:03.7]} 11... N4xd5 {[%clk 0:02:42.2]} 12. Nc3 {[%clk 0:02:01.1]}
12... Nxc3 {[%clk 0:02:40]} 13. bxc3 {[%clk 0:02:00.6]} 13... d5 {[%clk
0:02:38.2]} 14. Ng5 {[%clk 0:01:58.9]} 14... h6 {[%clk 0:02:30.3]} 15. Nf3
{[%clk 0:01:38.5]} 15... Ng4 {[%clk 0:02:25.2]} 16. h3 {[%clk 0:01:31.9]} 16...
Nxe3 {[%clk 0:02:23]} 17. Bxe3 {[%clk 0:01:31.8]} 17... Rxe3 {[%clk 0:02:20.6]}
18. Nd4 {[%clk 0:01:24.7]} 18... Bxd4 {[%clk 0:02:14.6]} 19. cxd4 {[%clk
0:01:24.6]} 19... Qe7 {[%clk 0:02:14.8]} 20. Qd2 {[%clk 0:01:20]} 20... Bd7
{[%clk 0:02:11]} 21. Rae1 {[%clk 0:01:06.4]} 21... Re8 {[%clk 0:02:10.4]} 22.
Rc1 {[%clk 0:01:05.6]} 22... Bxh3 {[%clk 0:01:57.4]} 23. gxh3 {[%clk 0:01:04.3]}
23... Rxh3+ {[%clk 0:01:56.4]} 24. Kg1 {[%clk 0:01:01.2]} 24... Qh4 {[%clk
0:01:56.4]} 25. Bf5 {[%clk 0:00:36.2]} 25... Rh1+ {[%clk 0:01:50]} 26. Kg2
{[%clk 0:00:34.1]} 26... Rh2+ {[%clk 0:01:43.7]} 0-1

[Event "Late-Titled-Tuesday-Blitz-March-19-2024"]
[Site "Chess.com"]
[Date "2024.03.19"]
[Round "11"]
[White "Mikhail_Golubev"]
[Black "EsmeraldasAnderson03"]
[Result "1-0"]
[WhiteElo "2726"]
[BlackElo "2569"]
[TimeControl "180+1"]
[EndTime "16:02:45 PDT"]
[Termination "Mikhail_Golubev won by checkmate"]

1. e4 {[%clk 0:03:00.9]} 1... c5 {[%clk 0:02:59.8]} 2. Nf3 {[%clk 0:03:00.6]}
2... d6 {[%clk 0:03:00.5]} 3. d4 {[%clk 0:03:00.5]} 3... cxd4 {[%clk 0:03:01.4]}
4. Nxd4 {[%clk 0:03:00.8]} 4... Nf6 {[%clk 0:03:02.3]} 5. Nc3 {[%clk 0:03:00.9]}
5... a6 {[%clk 0:03:03]} 6. Bc4 {[%clk 0:03:01.1]} 6... e6 {[%clk 0:03:02.4]} 7.
Bb3 {[%clk 0:03:01.3]} 7... Be7 {[%clk 0:03:03]} 8. f4 {[%clk 0:02:59.5]} 8...
O-O {[%clk 0:03:02.5]} 9. Be3 {[%clk 0:02:59.4]} 9... Qc7 {[%clk 0:03:02.4]} 10.
f5 {[%clk 0:02:52.4]} 10... e5 {[%clk 0:02:54.9]} 11. Nde2 {[%clk 0:02:51.3]}
11... b5 {[%clk 0:02:54.4]} 12. Nd5 {[%clk 0:02:48.4]} 12... Nxd5 {[%clk
0:02:53.8]} 13. Bxd5 {[%clk 0:02:48.7]} 13... Bb7 {[%clk 0:02:54.4]} 14. Bxb7
{[%clk 0:02:47.4]} 14... Qxb7 {[%clk 0:02:55.3]} 15. Nc3 {[%clk 0:02:40.6]}
15... Nd7 {[%clk 0:02:52.4]} 16. Nd5 {[%clk 0:02:17.1]} 16... Nf6 {[%clk
0:02:52]} 17. Nxf6+ {[%clk 0:01:39.2]} 17... Bxf6 {[%clk 0:02:52.9]} 18. Qf3
{[%clk 0:01:24.6]} 18... Rac8 {[%clk 0:02:48.3]} 19. Rd1 {[%clk 0:01:12.4]}
19... Rxc2 {[%clk 0:02:32]} 20. O-O {[%clk 0:01:11.7]} 20... Rxb2 {[%clk
0:02:18.5]} 21. Rxd6 {[%clk 0:01:08.4]} 21... Rb4 {[%clk 0:02:13.5]} 22. Rxf6
{[%clk 0:00:28.9]} 22... gxf6 {[%clk 0:02:01]} 23. Bc5 {[%clk 0:00:28.6]} 23...
Qxe4 {[%clk 0:01:49.5]} 24. Qg3+ {[%clk 0:00:28.4]} 24... Qg4 {[%clk 0:01:34.9]}
25. Bxb4 {[%clk 0:00:28.3]} 25... Qxg3 {[%clk 0:01:35.4]} 26. hxg3 {[%clk
0:00:29.1]} 26... Rc8 {[%clk 0:01:35.6]} 27. Rd1 {[%clk 0:00:29]} 27... Rc4
{[%clk 0:01:35.3]} 28. Rd8+ {[%clk 0:00:28.7]} 28... Kg7 {[%clk 0:01:35.7]} 29.
Bf8+ {[%clk 0:00:28.9]} 29... Kg8 {[%clk 0:01:32.9]} 30. Bh6# {[%clk 0:00:28.7]}
1-0

[Event "Late-Titled-Tuesday-Blitz-March-19-2024"]
[Site "Chess.com"]
[Date "2024.03.19"]
[Round "11"]
[White "diamonds13"]
[Black "Keks2017"]
[Result "1-0"]
[WhiteElo "2398"]
[BlackElo "2560"]
[TimeControl "180+1"]
[EndTime "16:02:49 PDT"]
[Termination "diamonds13 won on time"]

1. d4 {[%clk 0:02:56.7]} 1... d6 {[%clk 0:03:00]} 2. e4 {[%clk 0:02:55.4]} 2...
Nf6 {[%clk 0:03:00]} 3. Bd3 {[%clk 0:02:54]} 3... e5 {[%clk 0:02:59.5]} 4. c3
{[%clk 0:02:52.3]} 4... d5 {[%clk 0:02:59.5]} 5. dxe5 {[%clk 0:02:52.6]} 5...
Nxe4 {[%clk 0:02:59.4]} 6. Nf3 {[%clk 0:02:50.9]} 6... Nc6 {[%clk 0:02:58.4]} 7.
O-O {[%clk 0:02:50.1]} 7... Bg4 {[%clk 0:02:57.5]} 8. Nbd2 {[%clk 0:02:41.5]}
8... Nc5 {[%clk 0:02:57.1]} 9. Be2 {[%clk 0:02:38.8]} 9... Ne6 {[%clk
0:02:55.5]} 10. h3 {[%clk 0:02:35.1]} 10... Bh5 {[%clk 0:02:55.3]} 11. b4 {[%clk
0:02:34.1]} 11... Be7 {[%clk 0:02:53.8]} 12. b5 {[%clk 0:02:34.2]} 12... Nb8
{[%clk 0:02:50.1]} 13. c4 {[%clk 0:02:25.5]} 13... dxc4 {[%clk 0:02:47.4]} 14.
Nxc4 {[%clk 0:02:25.2]} 14... Qxd1 {[%clk 0:02:45.9]} 15. Rxd1 {[%clk
0:02:24.7]} 15... Nd7 {[%clk 0:02:44.8]} 16. Be3 {[%clk 0:02:22.6]} 16... Bc5
{[%clk 0:02:35.8]} 17. Rac1 {[%clk 0:02:19.4]} 17... O-O-O {[%clk 0:02:20.1]}
18. g4 {[%clk 0:02:16]} 18... Bg6 {[%clk 0:02:19.1]} 19. Rc3 {[%clk 0:01:33.6]}
1-0

[Event "Late-Titled-Tuesday-Blitz-March-19-2024"]
[Site "Chess.com"]
[Date "2024.03.19"]
[Round "11"]
[White "Alexei_Gubajdullin"]
[Black "kleber2007"]
[Result "1-0"]
[WhiteElo "2635"]
[BlackElo "2485"]
[TimeControl "180+1"]
[EndTime "16:02:52 PDT"]
[Termination "Alexei_Gubajdullin won by resignation"]

1. d4 {[%clk 0:03:00.9]} 1... Nf6 {[%clk 0:02:59.3]} 2. Nf3 {[%clk 0:03:01.1]}
2... g6 {[%clk 0:02:59.6]} 3. Bf4 {[%clk 0:03:01.5]} 3... Bg7 {[%clk 0:02:59.5]}
4. e3 {[%clk 0:03:01.9]} 4... d6 {[%clk 0:02:58.6]} 5. Be2 {[%clk 0:03:02.2]}
5... O-O {[%clk 0:02:57.6]} 6. O-O {[%clk 0:03:02.3]} 6... c5 {[%clk 0:02:57.9]}
7. c3 {[%clk 0:03:01.5]} 7... cxd4 {[%clk 0:02:45.1]} 8. exd4 {[%clk 0:03:01.1]}
8... Be6 {[%clk 0:02:45.6]} 9. Nbd2 {[%clk 0:02:59.9]} 9... Qb6 {[%clk 0:02:42]}
10. Bc4 {[%clk 0:02:54.3]} 10... Bd7 {[%clk 0:02:35.2]} 11. Bb3 {[%clk
0:02:52.9]} 11... Nc6 {[%clk 0:02:33.9]} 12. Nc4 {[%clk 0:02:52.4]} 12... Qc7
{[%clk 0:02:32.7]} 13. Ne3 {[%clk 0:02:52.5]} 13... Na5 {[%clk 0:02:29.1]} 14.
Bg5 {[%clk 0:02:52.3]} 14... Nxb3 {[%clk 0:02:27.9]} 15. axb3 {[%clk 0:02:52.6]}
15... Bc6 {[%clk 0:02:19.6]} 16. d5 {[%clk 0:02:47.8]} 16... Bd7 {[%clk
0:02:15.9]} 17. Nd4 {[%clk 0:02:43.4]} 17... a6 {[%clk 0:02:15.1]} 18. Qf3
{[%clk 0:02:42.7]} 18... Rae8 {[%clk 0:01:56.6]} 19. Rfe1 {[%clk 0:02:41.7]}
19... e5 {[%clk 0:01:56.6]} 20. dxe6 {[%clk 0:02:32.6]} 20... fxe6 {[%clk
0:01:57.5]} 21. Qe2 {[%clk 0:02:16.6]} 21... e5 {[%clk 0:01:56.4]} 22. Ndc2
{[%clk 0:02:16.2]} 22... Bc6 {[%clk 0:01:50.6]} 23. Bxf6 {[%clk 0:02:07]} 23...
Rxf6 {[%clk 0:01:47.2]} 24. Nb4 {[%clk 0:02:07.9]} 24... Ref8 {[%clk 0:01:44]}
25. Nbd5 {[%clk 0:02:06.9]} 25... Qf7 {[%clk 0:01:39.9]} 26. Nxf6+ {[%clk
0:02:06.2]} 26... Bxf6 {[%clk 0:01:40.8]} 27. Rad1 {[%clk 0:01:57.2]} 27... Qxb3
{[%clk 0:01:39.6]} 28. Qc4+ {[%clk 0:01:50.3]} 28... Qxc4 {[%clk 0:01:38.8]} 29.
Nxc4 {[%clk 0:01:51.2]} 29... Be7 {[%clk 0:01:21.2]} 30. Nxd6 {[%clk 0:01:50.3]}
30... Ba4 {[%clk 0:01:20.1]} 31. Rd2 {[%clk 0:01:37.7]} 31... Bg5 {[%clk
0:01:16.5]} 32. Rde2 {[%clk 0:01:37.8]} 32... Rd8 {[%clk 0:01:14.1]} 33. Nxb7
{[%clk 0:01:36.7]} 33... Rb8 {[%clk 0:01:09]} 34. Nc5 {[%clk 0:01:35.3]} 34...
Bb5 {[%clk 0:01:06.4]} 35. Rxe5 {[%clk 0:01:35.3]} 35... Bf6 {[%clk 0:01:06.4]}
36. Re6 {[%clk 0:01:34.4]} 36... Kf7 {[%clk 0:01:05.8]} 37. Nxa6 {[%clk
0:01:30.6]} 37... Rd8 {[%clk 0:01:01.2]} 38. Nc5 {[%clk 0:01:22.1]} 38... Rd2
{[%clk 0:00:59.4]} 39. Rxf6+ {[%clk 0:01:21.9]} 39... Kxf6 {[%clk 0:00:57.2]}
40. Ne4+ {[%clk 0:01:21.9]} 1-0